fUSD/lending_fUSD_20260601
["ID","MTS","AMOUNT","RATE_DAILY","PERIOD"]
[423612728,1780260632000,-582.24473844,8.95e-05,2]
[423612719,1780260632000,-279.0,8.886e-05,2]
[423612720,1780260632000,-8205.69,8.926e-05,2]
[423612735,1780260632000,-150.0,8.95e-05,2]
[423612723,1780260632000,-500.0,8.95e-05,2]
[423612722,1780260632000,-26517.0,8.932e-05,2]
[423612711,1780260632000,-329.56777089,8.841e-05,2]
[423612707,1780260632000,-166.66,8.824e-05,2]
[423612709,1780260632000,-250.0,8.841e-05,2]
[423612713,1780260632000,-458.12219061,8.849e-05,2]
[423612708,1780260632000,-459.25550537,8.841e-05,2]
[423612710,1780260632000,-193.0,8.841e-05,2]
[423612712,1780260632000,-2530.69934989,8.841e-05,2]
[423612715,1780260632000,-180.0,8.849e-05,2]
[423612716,1780260632000,-478.01688316,8.849e-05,2]
[423612717,1780260632000,-75644.1661,8.85e-05,2]
[423612721,1780260632000,-19040.0,8.932e-05,2]
[423612718,1780260632000,-2500.0,8.851e-05,2]
[423612714,1780260632000,-500.0,8.849e-05,2]
[423612724,1780260632000,-1000.0,8.95e-05,2]
[423612750,1780260637000,-650.85503381,8.951e-05,2]
[423612793,1780260638000,-169.9,0.00010295,2]
[423612794,1780260638000,-169.9,0.00010295,2]
[423612792,1780260638000,-169.9,0.00010295,2]
[423612791,1780260638000,-4000.0,0.00010278,2]
[423612787,1780260638000,-4673.42,0.00010131,2]
[423612788,1780260638000,-275169.21654735,0.00010181,2]
[423612786,1780260638000,-2336.71,0.00010131,2]
[423612784,1780260638000,-17562.0,0.0001011,2]
[423612785,1780260638000,-4995.0,0.00010131,2]
[423612789,1780260638000,-433.0,0.00010188,2]
[423612795,1780260638000,-169.8,0.00010295,2]
[423612806,1780260638000,-150.0,0.00010959,2]
[423612797,1780260638000,-223.92,0.00010389,2]
[423612796,1780260638000,-500.0,0.0001032,2]
[423612798,1780260638000,-4000.0,0.00010529,2]
[423612800,1780260638000,-4000.0,0.00010779,2]
[423612799,1780260638000,-500.0,0.00010594,2]
[423612801,1780260638000,-1600.0,0.00010787,2]
[423612804,1780260638000,-223.92,0.00010861,2]
[423612803,1780260638000,-3292.0,0.00010853,2]
[423612802,1780260638000,-823.0,0.00010853,2]
[423612805,1780260638000,-500.0,0.00010868,2]
[423612782,1780260638000,-4000.0,0.00010027,2]
[423612790,1780260638000,-6273.4931,0.00010274,2]
[423612783,1780260638000,-500.0,0.00010046,2]
[423612759,1780260638000,-500.0,9.224e-05,2]
[423612780,1780260638000,-340.26337355,0.0001,2]
[423612808,1780260638000,-150.0,0.00010989,2]
[423612751,1780260638000,-1327192.20616736,8.951e-05,2]
[423612755,1780260638000,-223.92,8.972e-05,2]
[423612752,1780260638000,-420.0,8.969e-05,2]
[423612756,1780260638000,-166.66,9.081e-05,2]
[423612753,1780260638000,-420.0,8.969e-05,2]
[423612754,1780260638000,-1680.0,8.969e-05,2]
[423612757,1780260638000,-194.44,9.083e-05,2]
[423612760,1780260638000,-255.0,9.262e-05,2]
[423612758,1780260638000,-308.35,9.222e-05,2]
[423612761,1780260638000,-500.0,9.273e-05,2]
[423612779,1780260638000,-340.0,0.0001,2]
[423612762,1780260638000,-223.92,9.444e-05,2]
[423612766,1780260638000,-500.0,9.772e-05,2]
[423612768,1780260638000,-587.0,9.866e-05,2]
[423612767,1780260638000,-290.0,9.866e-05,2]
[423612765,1780260638000,-1600.0,9.588e-05,2]
[423612769,1780260638000,-2351.0,9.866e-05,2]
[423612770,1780260638000,-223.92,9.917e-05,2]
[423612771,1780260638000,-250.0,9.962e-05,2]
[423612776,1780260638000,-2160.02052503,0.0001,2]
[423612774,1780260638000,-163.57,0.0001,2]
[423612778,1780260638000,-340.0,0.0001,2]
[423612781,1780260638000,-2791.15203548,0.0001,2]
[423612764,1780260638000,-500.0,9.498e-05,2]
[423612809,1780260638000,-150.0,0.00010989,2]
[423612810,1780260638000,-150.0,0.00010989,2]
[423612807,1780260638000,-150.0,0.00010989,2]
[423612837,1780260638000,-6453.0,0.00013132,2]
[423612840,1780260638000,-236.12847992,0.00013343,2]
[423612842,1780260638000,-500.0,0.00013698,2]
[423612843,1780260638000,-500.0,0.00013698,2]
[423612841,1780260638000,-500.0,0.00013607,2]
[423612845,1780260638000,-500.0,0.00013698,2]
[423612846,1780260638000,-500.0,0.00013698,2]
[423612849,1780260638000,-500.0,0.00013698,2]
[423612847,1780260638000,-321.46293792,0.00013698,2]
[423612844,1780260638000,-500.0,0.00013698,2]
[423612848,1780260638000,-500.0,0.00013698,2]
[423612853,1780260638000,-500.0,0.00013698,2]
[423612851,1780260638000,-500.0,0.00013698,2]
[423612852,1780260638000,-500.0,0.00013698,2]
[423612854,1780260638000,-500.0,0.00013698,2]
[423612855,1780260638000,-500.0,0.00013698,2]
[423612857,1780260638000,-500.0,0.00013698,2]
[423612858,1780260638000,-500.0,0.00013698,2]
[423612859,1780260638000,-500.0,0.00013698,2]
[423612856,1780260638000,-500.0,0.00013698,2]
[423612860,1780260638000,-500.0,0.00013698,2]
[423612861,1780260638000,-501.20372086,0.00013698,2]
[423612811,1780260638000,-4000.0,0.0001103,2]
[423612838,1780260638000,-1600.0,0.00013184,2]
[423612835,1780260638000,-1127.50266898,0.00013004,2]
[423612850,1780260638000,-500.0,0.00013698,2]
[423612834,1780260638000,-500.0,0.00012785,2]
[423612836,1780260638000,-500.0,0.00013059,2]
[423612862,1780260638000,-500.0,0.00013698,2]
[423612814,1780260638000,-736.0,0.00011206,2]
[423612813,1780260638000,-500.0,0.00011142,2]
[423612812,1780260638000,-35032.9760675,0.00011099,2]
[423612816,1780260638000,-500.0,0.00011416,2]
[423612815,1780260638000,-223.92,0.00011333,2]
[423612817,1780260638000,-500.0,0.0001169,2]
[423612819,1780260638000,-157.0,0.00011806,2]
[423612822,1780260638000,-317.0,0.00011938,2]
[423612821,1780260638000,-441.06906318,0.00011925,2]
[423612820,1780260638000,-35032.9760675,0.00011879,2]
[423612818,1780260638000,-223.92,0.00011806,2]
[423612823,1780260638000,-4609.0,0.00011938,2]
[423612839,1780260638000,-500.0,0.00013333,2]
[423612830,1780260638000,-1252.0,0.00012326,2]
[423612831,1780260638000,-150.73,0.00012329,2]
[423612832,1780260638000,-500.0,0.00012512,2]
[423612829,1780260638000,-223.92,0.00012278,2]
[423612833,1780260638000,-223.92,0.0001275,2]
[423612828,1780260638000,-522.31998486,0.00012277,2]
[423612826,1780260638000,-40526.3,0.00012055,2]
[423612827,1780260638000,-500.0,0.00012238,2]
[423612825,1780260638000,-1600.0,0.00011985,2]
[423612824,1780260638000,-500.0,0.00011964,2]
[423612903,1780260639000,-500.0,0.00013698,2]
[423612902,1780260639000,-500.0,0.00013698,2]
[423612906,1780260639000,-524.73,0.00013698,2]
[423612905,1780260639000,-500.0,0.00013698,2]
[423612900,1780260639000,-500.0,0.00013698,2]
[423612901,1780260639000,-500.0,0.00013698,2]
[423612898,1780260639000,-500.0,0.00013698,2]
[423612899,1780260639000,-486.4,0.00013698,2]
[423612897,1780260639000,-500.0,0.00013698,2]
[423612895,1780260639000,-500.0,0.00013698,2]
[423612894,1780260639000,-500.0,0.00013698,2]
[423612896,1780260639000,-500.0,0.00013698,2]
[423612904,1780260639000,-500.0,0.00013698,2]
[423612921,1780260639000,-500.0,0.00013698,2]
[423612909,1780260639000,-500.0,0.00013698,2]
[423612908,1780260639000,-500.0,0.00013698,2]
[423612910,1780260639000,-500.0,0.00013698,2]
[423612911,1780260639000,-500.0,0.00013698,2]
[423612914,1780260639000,-351.78292401,0.00013698,2]
[423612915,1780260639000,-500.0,0.00013698,2]
[423612913,1780260639000,-500.0,0.00013698,2]
[423612916,1780260639000,-500.0,0.00013698,2]
[423612912,1780260639000,-500.0,0.00013698,2]
[423612917,1780260639000,-500.0,0.00013698,2]
[423612919,1780260639000,-500.0,0.00013698,2]
[423612892,1780260639000,-500.0,0.00013698,2]
[423612907,1780260639000,-500.0,0.00013698,2]
[423612893,1780260639000,-500.0,0.00013698,2]
[423612865,1780260639000,-500.0,0.00013698,2]
[423612889,1780260639000,-500.0,0.00013698,2]
[423612864,1780260639000,-500.0,0.00013698,2]
[423612863,1780260639000,-500.0,0.00013698,2]
[423612922,1780260639000,-500.0,0.00013698,2]
[423612867,1780260639000,-500.0,0.00013698,2]
[423612868,1780260639000,-500.0,0.00013698,2]
[423612869,1780260639000,-216.73250781,0.00013698,2]
[423612866,1780260639000,-500.0,0.00013698,2]
[423612871,1780260639000,-431.36730737,0.00013698,2]
[423612870,1780260639000,-500.0,0.00013698,2]
[423612872,1780260639000,-500.0,0.00013698,2]
[423612875,1780260639000,-500.0,0.00013698,2]
[423612876,1780260639000,-500.0,0.00013698,2]
[423612874,1780260639000,-500.0,0.00013698,2]
[423612873,1780260639000,-500.0,0.00013698,2]
[423612877,1780260639000,-500.0,0.00013698,2]
[423612880,1780260639000,-500.0,0.00013698,2]
[423612879,1780260639000,-500.0,0.00013698,2]
[423612881,1780260639000,-500.0,0.00013698,2]
[423612878,1780260639000,-500.0,0.00013698,2]
[423612882,1780260639000,-500.0,0.00013698,2]
[423612883,1780260639000,-500.0,0.00013698,2]
[423612885,1780260639000,-500.0,0.00013698,2]
[423612884,1780260639000,-500.0,0.00013698,2]
[423612886,1780260639000,-500.0,0.00013698,2]
[423612887,1780260639000,-500.0,0.00013698,2]
[423612890,1780260639000,-500.0,0.00013698,2]
[423612888,1780260639000,-500.0,0.00013698,2]
[423612891,1780260639000,-500.0,0.00013698,2]
[423612923,1780260639000,-500.0,0.00013698,2]
[423612918,1780260639000,-500.0,0.00013698,2]
[423612924,1780260639000,-500.0,0.00013698,2]
[423612956,1780260639000,-500.0,0.00013698,2]
[423612957,1780260639000,-500.0,0.00013698,2]
[423612960,1780260639000,-178.72578611,0.00013698,2]
[423612958,1780260639000,-500.0,0.00013698,2]
[423612962,1780260639000,-202.78843615,0.00013698,2]
[423612964,1780260639000,-550.8,0.00013698,2]
[423612966,1780260639000,-550.8,0.00013698,2]
[423612979,1780260639000,-550.8,0.00013698,2]
[423612976,1780260639000,-550.8,0.00013698,2]
[423612970,1780260639000,-550.8,0.00013698,2]
[423612968,1780260639000,-550.8,0.00013698,2]
[423612981,1780260639000,-550.8,0.00013698,2]
[423612983,1780260639000,-550.8,0.00013698,2]
[423612985,1780260639000,-500.0,0.00013698,2]
[423612987,1780260639000,-500.0,0.00013698,2]
[423612989,1780260639000,-500.0,0.00013698,2]
[423612992,1780260639000,-500.0,0.00013698,2]
[423613005,1780260639000,-500.0,0.00013698,2]
[423612994,1780260639000,-500.0,0.00013698,2]
[423612991,1780260639000,-500.0,0.00013698,2]
[423613003,1780260639000,-500.0,0.00013698,2]
[423612999,1780260639000,-500.0,0.00013698,2]
[423612996,1780260639000,-500.0,0.00013698,2]
[423613000,1780260639000,-500.0,0.00013698,2]
[423613006,1780260639000,-500.0,0.00013698,2]
[423612920,1780260639000,-500.0,0.00013698,2]
[423613009,1780260639000,-500.0,0.00013698,2]
[423612951,1780260639000,-500.0,0.00013698,2]
[423612955,1780260639000,-500.0,0.00013698,2]
[423612972,1780260639000,-550.8,0.00013698,2]
[423612954,1780260639000,-500.0,0.00013698,2]
[423612925,1780260639000,-500.0,0.00013698,2]
[423612950,1780260639000,-500.0,0.00013698,2]
[423612929,1780260639000,-500.0,0.00013698,2]
[423612927,1780260639000,-500.0,0.00013698,2]
[423612928,1780260639000,-500.0,0.00013698,2]
[423612930,1780260639000,-1989.08,0.00013698,2]
[423612931,1780260639000,-1989.08,0.00013698,2]
[423612934,1780260639000,-1989.08,0.00013698,2]
[423612932,1780260639000,-1989.08,0.00013698,2]
[423612935,1780260639000,-1989.08,0.00013698,2]
[423612933,1780260639000,-1989.08,0.00013698,2]
[423612937,1780260639000,-1989.08,0.00013698,2]
[423612936,1780260639000,-1989.08,0.00013698,2]
[423612938,1780260639000,-1989.08,0.00013698,2]
[423612926,1780260639000,-500.0,0.00013698,2]
[423612939,1780260639000,-484.96,0.00013698,2]
[423612940,1780260639000,-500.0,0.00013698,2]
[423612952,1780260639000,-500.0,0.00013698,2]
[423612949,1780260639000,-500.0,0.00013698,2]
[423612948,1780260639000,-500.0,0.00013698,2]
[423612945,1780260639000,-500.0,0.00013698,2]
[423612947,1780260639000,-500.0,0.00013698,2]
[423612953,1780260639000,-500.0,0.00013698,2]
[423612944,1780260639000,-500.0,0.00013698,2]
[423612942,1780260639000,-500.0,0.00013698,2]
[423612943,1780260639000,-500.0,0.00013698,2]
[423612941,1780260639000,-500.0,0.00013698,2]
[423612946,1780260639000,-500.0,0.00013698,2]
[423613089,1780260640000,-500.0,0.00013699,2]
[423613101,1780260640000,-500.0,0.00013699,2]
[423613099,1780260640000,-500.0,0.00013699,2]
[423613071,1780260640000,-151.0,0.00013699,2]
[423613097,1780260640000,-500.0,0.00013699,2]
[423613083,1780260640000,-500.0,0.00013699,2]
[423613085,1780260640000,-500.0,0.00013699,2]
[423613081,1780260640000,-500.0,0.00013699,2]
[423613079,1780260640000,-500.0,0.00013699,2]
[423613093,1780260640000,-500.0,0.00013699,2]
[423613077,1780260640000,-162.917968,0.00013699,2]
[423613087,1780260640000,-500.0,0.00013699,2]
[423613091,1780260640000,-371.04036724,0.00013699,2]
[423613110,1780260640000,-500.0,0.00013699,2]
[423613105,1780260640000,-500.0,0.00013699,2]
[423613107,1780260640000,-500.0,0.00013699,2]
[423613104,1780260640000,-500.0,0.00013699,2]
[423613109,1780260640000,-500.0,0.00013699,2]
[423613114,1780260640000,-500.0,0.00013699,2]
[423613118,1780260640000,-500.0,0.00013699,2]
[423613120,1780260640000,-500.0,0.00013699,2]
[423613116,1780260640000,-500.0,0.00013699,2]
[423613127,1780260640000,-966.33,0.000137,2]
[423613123,1780260640000,-500.0,0.00013699,2]
[423613125,1780260640000,-500.0,0.00013699,2]
[423613069,1780260640000,-151.0,0.00013699,2]
[423613095,1780260640000,-500.0,0.00013699,2]
[423613073,1780260640000,-151.0,0.00013699,2]
[423613015,1780260640000,-500.0,0.00013698,2]
[423613075,1780260640000,-151.0,0.00013699,2]
[423613129,1780260640000,-166.66,0.00013836,2]
[423613011,1780260640000,-500.0,0.00013698,2]
[423613013,1780260640000,-500.0,0.00013698,2]
[423613019,1780260640000,-196.77646155,0.00013698,2]
[423613024,1780260640000,-500.0,0.00013698,2]
[423613017,1780260640000,-500.0,0.00013698,2]
[423613026,1780260640000,-500.0,0.00013698,2]
[423613022,1780260640000,-500.0,0.00013698,2]
[423613030,1780260640000,-303.83318809,0.00013698,2]
[423613028,1780260640000,-500.0,0.00013698,2]
[423613035,1780260640000,-534.65,0.00013698,2]
[423613033,1780260640000,-534.65,0.00013698,2]
[423613039,1780260640000,-534.65,0.00013698,2]
[423613067,1780260640000,-151.0,0.00013699,2]
[423613037,1780260640000,-534.65,0.00013698,2]
[423613055,1780260640000,-500.0,0.00013698,2]
[423613044,1780260640000,-534.65,0.00013698,2]
[423613053,1780260640000,-157.0,0.00013698,2]
[423613048,1780260640000,-534.65,0.00013698,2]
[423613046,1780260640000,-534.65,0.00013698,2]
[423613051,1780260640000,-534.65,0.00013698,2]
[423613057,1780260640000,-200.0,0.00013699,2]
[423613059,1780260640000,-166.66,0.00013699,2]
[423613060,1780260640000,-151.0,0.00013699,2]
[423613061,1780260640000,-151.0,0.00013699,2]
[423613062,1780260640000,-151.0,0.00013699,2]
[423613063,1780260640000,-151.0,0.00013699,2]
[423613065,1780260640000,-151.0,0.00013699,2]
[423613042,1780260640000,-534.65,0.00013698,2]
[423613131,1780260640000,-500.0,0.00013881,2]
[423613112,1780260640000,-500.0,0.00013699,2]
[423613135,1780260640000,-14638.53838506,0.0001399,2]
[423613192,1780260640000,-24999.99,0.00016922,2]
[423613194,1780260640000,-9999.99,0.00016922,2]
[423613202,1780260640000,-1490.66,0.00016922,2]
[423613200,1780260640000,-5603.78,0.00016922,2]
[423613204,1780260640000,-299.99,0.00016922,4]
[423613198,1780260640000,-521.26,0.00016922,2]
[423613207,1780260640000,-150.0,0.00017142,3]
[423613205,1780260640000,-5839.41,0.00017123,2]
[423613209,1780260640000,-3729.75945611,0.00017628,2]
[423613217,1780260640000,-151.0,0.00018518,2]
[423613210,1780260640000,-5839.43,0.00017808,2]
[423613214,1780260640000,-512.3,0.0001841,2]
[423613212,1780260640000,-35032.9760675,0.00018134,2]
[423613219,1780260640000,-151.0,0.00018518,2]
[423613220,1780260640000,-693.39197629,0.00018518,2]
[423613222,1780260640000,-1428.38747117,0.00018518,2]
[423613224,1780260640000,-151.0,0.00018518,2]
[423613237,1780260640000,-151.0,0.00018518,2]
[423613234,1780260640000,-151.0,0.00018518,2]
[423613235,1780260640000,-151.0,0.00018518,2]
[423613232,1780260640000,-151.0,0.00018518,2]
[423613225,1780260640000,-151.0,0.00018518,2]
[423613230,1780260640000,-151.0,0.00018518,2]
[423613239,1780260640000,-151.0,0.00018518,2]
[423613227,1780260640000,-151.0,0.00018518,2]
[423613229,1780260640000,-2080.17592889,0.00018518,2]
[423613133,1780260640000,-166.66,0.00013973,2]
[423613190,1780260640000,-999.99,0.00016922,2]
[423613187,1780260640000,-1581.2,0.00016922,2]
[423613215,1780260640000,-179.5065138,0.0001851,2]
[423613197,1780260640000,-3017.25,0.00016922,2]
[423613148,1780260640000,-1600.0,0.00014382,2]
[423613186,1780260640000,-5765.21,0.00016922,2]
[423613150,1780260640000,-166.66,0.00014384,2]
[423613152,1780260640000,-218.0,0.00014445,2]
[423613139,1780260640000,-500.0,0.0001409,2]
[423613142,1780260640000,-166.66,0.0001411,2]
[423613137,1780260640000,-2000.0,0.0001409,2]
[423613146,1780260640000,-166.66,0.00014247,2]
[423613144,1780260640000,-276.8336935,0.00014155,2]
[423613157,1780260640000,-450.31,0.00015068,2]
[423613161,1780260640000,-345.810808,0.00016384,2]
[423613159,1780260640000,-321.706415,0.00016119,2]
[423613165,1780260640000,-5839.41,0.00016438,2]
[423613166,1780260640000,-450.31,0.00016438,2]
[423613155,1780260640000,-35032.9760675,0.00015006,2]
[423613189,1780260640000,-2833.58,0.00016922,2]
[423613195,1780260640000,-73889.43,0.00016922,2]
[423613163,1780260640000,-512.3,0.00016438,2]
[423613184,1780260640000,-150.99,0.00016922,2]
[423613180,1780260640000,-2133.52,0.00016922,2]
[423613182,1780260640000,-1741.43,0.00016922,5]
[423613178,1780260640000,-12269.78,0.00016922,2]
[423613181,1780260640000,-9999.99,0.00016922,2]
[423613173,1780260640000,-381.51633189,0.00016881,2]
[423613177,1780260640000,-4999.99,0.00016922,2]
[423613175,1780260640000,-499.99,0.00016922,2]
[423613169,1780260640000,-168.2,0.00016712,2]
[423613171,1780260640000,-150.73,0.00016767,2]
[423613179,1780260640000,-9999.99,0.00016922,2]
[423613307,1780260641000,-4255.0,0.00020747,5]
[423613323,1780260641000,-265.0,0.00021,2]
[423613312,1780260641000,-187.0,0.00021,2]
[423613311,1780260641000,-506.0,0.00021,2]
[423613309,1780260641000,-3406.0,0.00020747,5]
[423613306,1780260641000,-2405.55389863,0.0002071,2]
[423613297,1780260641000,-1592.87721992,0.00020162,2]
[423613301,1780260641000,-512.3,0.00020381,2]
[423613289,1780260641000,-387.0,0.0002,2]
[423613302,1780260641000,-500.0,0.00020621,2]
[423613299,1780260641000,-2319.72410669,0.00020162,2]
[423613324,1780260641000,-1097.0,0.00021,2]
[423613304,1780260641000,-1651.81367706,0.0002071,2]
[423613326,1780260641000,-150.73,0.00021205,2]
[423613342,1780260641000,-11347.38968608,0.00021858,2]
[423613320,1780260641000,-387.0,0.00021,2]
[423613321,1780260641000,-481.0,0.00021,2]
[423613318,1780260641000,-778.0,0.00021,2]
[423613316,1780260641000,-354.0,0.00021,2]
[423613328,1780260641000,-500.0,0.0002124,2]
[423613330,1780260641000,-1712.93078311,0.00021258,2]
[423613331,1780260641000,-2494.55939288,0.00021258,2]
[423613333,1780260641000,-35032.9760675,0.00021262,2]
[423613335,1780260641000,-966.33,0.000213,2]
[423613338,1780260641000,-1776.30922209,0.00021806,2]
[423613337,1780260641000,-3906.77,0.00021776,2]
[423613340,1780260641000,-2586.85809042,0.00021806,2]
[423613292,1780260641000,-3906.77,0.0002,2]
[423613314,1780260641000,-164.0,0.00021,2]
[423613296,1780260641000,-1097.0,0.0002,2]
[423613241,1780260641000,-151.0,0.00018518,2]
[423613290,1780260641000,-481.0,0.0002,2]
[423613242,1780260641000,-151.0,0.00018518,2]
[423613246,1780260641000,-151.0,0.00018518,2]
[423613244,1780260641000,-151.0,0.00018518,2]
[423613247,1780260641000,-151.0,0.00018518,2]
[423613249,1780260641000,-151.0,0.00018518,2]
[423613253,1780260641000,-151.0,0.00018518,2]
[423613251,1780260641000,-151.0,0.00018518,2]
[423613256,1780260641000,-719.04747942,0.00018573,2]
[423613254,1780260641000,-151.0,0.00018518,2]
[423613258,1780260641000,-745.65223615,0.00018628,2]
[423613259,1780260641000,-773.24136889,0.00018683,2]
[423613263,1780260641000,-801.85129954,0.00018738,2]
[423613261,1780260641000,-200.0,0.00018696,2]
[423613268,1780260641000,-894.19061325,0.00018903,2]
[423613265,1780260641000,-831.51979762,0.00018793,2]
[423613266,1780260641000,-862.28603014,0.00018848,2]
[423613270,1780260641000,-961.58486558,0.00019013,2]
[423613269,1780260641000,-927.27566594,0.00018958,2]
[423613272,1780260641000,-2157.14243826,0.00019066,2]
[423613271,1780260641000,-1481.2378076,0.00019066,2]
[423613276,1780260641000,-2236.95670847,0.00019614,2]
[423613273,1780260641000,-997.16350561,0.00019068,2]
[423613274,1780260641000,-1536.04360648,0.00019614,2]
[423613278,1780260641000,-2000.0,0.00019675,2]
[423613280,1780260641000,-506.0,0.0002,2]
[423613287,1780260641000,-778.0,0.0002,2]
[423613283,1780260641000,-151.0,0.0002,2]
[423613282,1780260641000,-187.0,0.0002,2]
[423613285,1780260641000,-354.0,0.0002,2]
[423613294,1780260641000,-265.0,0.0002,2]
[423613344,1780260641000,-500.0,0.00021877,2]
[423613348,1780260641000,-506.0,0.00022,2]
[423613346,1780260641000,-5000.0,0.00021918,2]
[423613416,1780260641000,-3906.77,0.00023553,2]
[423613418,1780260641000,-200.0,0.00023803,2]
[423613422,1780260641000,-1124.0,0.00023947,2]
[423613414,1780260641000,-2884.75459676,0.0002345,2]
[423613420,1780260641000,-500.0,0.00023906,2]
[423613434,1780260641000,-354.0,0.00024,2]
[423613430,1780260641000,-187.0,0.00024,2]
[423613432,1780260641000,-966.33,0.00024,7]
[423613436,1780260641000,-778.0,0.00024,2]
[423613439,1780260641000,-387.0,0.00024,2]
[423613449,1780260641000,-2877.9,0.00024174,2]
[423613441,1780260641000,-481.0,0.00024,2]
[423613453,1780260641000,-731.85,0.00024174,2]
[423613451,1780260641000,-176.1,0.00024174,2]
[423613455,1780260641000,-537.13,0.00024174,2]
[423613443,1780260641000,-265.0,0.00024,2]
[423613447,1780260641000,-442.27,0.00024174,2]
[423613445,1780260641000,-1097.0,0.00024,2]
[423613457,1780260641000,-512.3,0.00024324,2]
[423613459,1780260641000,-35032.9760675,0.00024389,2]
[423613461,1780260641000,-468.0,0.00024407,10]
[423613464,1780260641000,-2000.0,0.00024594,2]
[423613466,1780260641000,-500.0,0.00024623,2]
[423613476,1780260641000,-1401.48309954,0.00024989,2]
[423613478,1780260641000,-520.0,0.00025,2]
[423613474,1780260641000,-197.5,0.00024946,7]
[423613468,1780260641000,-231.54,0.00024658,2]
[423613472,1780260641000,-763.1,0.00024923,7]
[423613350,1780260641000,-187.0,0.00022,2]
[423613428,1780260641000,-506.0,0.00024,2]
[423613426,1780260641000,-2991.49051684,0.00023998,2]
[423613470,1780260641000,-197.5,0.00024658,2]
[423613412,1780260641000,-21390.45,0.00023368,2]
[423613352,1780260641000,-354.0,0.00022,2]
[423613354,1780260641000,-778.0,0.00022,2]
[423613358,1780260641000,-481.0,0.00022,2]
[423613356,1780260641000,-387.0,0.00022,2]
[423613374,1780260641000,-1842.0326633,0.00022354,2]
[423613372,1780260641000,-512.3,0.00022353,2]
[423613362,1780260641000,-763.1,0.00022,2]
[423613360,1780260641000,-265.0,0.00022,2]
[423613424,1780260641000,-2160.02052502,0.00023947,2]
[423613364,1780260641000,-1097.0,0.00022,2]
[423613376,1780260641000,-2682.57183977,0.00022354,2]
[423613370,1780260641000,-243.0,0.0002228,2]
[423613366,1780260641000,-150.0,0.000221,14]
[423613380,1780260641000,-2000.0,0.00022814,7]
[423613368,1780260641000,-2000.0,0.00022134,2]
[423613383,1780260641000,-299.16272091,0.00022902,2]
[423613378,1780260641000,-500.0,0.00022533,2]
[423613407,1780260641000,-500.0,0.00023209,2]
[423613406,1780260641000,-409.33,0.000232,14]
[423613403,1780260641000,-776.20683889,0.00023021,2]
[423613401,1780260641000,-1097.0,0.00023,2]
[423613399,1780260641000,-265.0,0.00023,2]
[423613409,1780260641000,-27456.47,0.00023368,2]
[423613398,1780260641000,-481.0,0.00023,2]
[423613391,1780260641000,-354.0,0.00023,2]
[423613393,1780260641000,-778.0,0.00023,2]
[423613387,1780260641000,-506.0,0.00023,2]
[423613389,1780260641000,-187.0,0.00023,2]
[423613385,1780260641000,-2781.82699784,0.00022902,2]
[423613395,1780260641000,-387.0,0.00023,2]
[423613576,1780260642000,-317.04474011,0.00027719,2]
[423613566,1780260642000,-3347.22,0.000274,14]